[Event "*** Titled Tuesday Blitz"]
[Site "Chess.com"]
[Date "2019.06.04"]
[Round "5"]
[White "VladDobrov"]
[Black "dusanacns"]
[Result "1-0"]
[WhiteElo "2831"]
[BlackElo "2654"]
[TimeControl "180+2"]
[EndTime "14:05:36 PDT"]
[Termination "VladDobrov won by resignation"]

1. d4 {[%clk 0:03:01.9]} 1... Nf6 {[%clk 0:03:00.5]} 2. c4 {[%clk 0:03:03.2]}
2... g6 {[%clk 0:03:01.6]} 3. g3 {[%clk 0:03:03.9]} 3... Bg7 {[%clk 0:03:02.5]}
4. Bg2 {[%clk 0:03:05.2]} 4... O-O {[%clk 0:03:04.1]} 5. Nc3 {[%clk 0:03:06.3]}
5... d6 {[%clk 0:03:05.4]} 6. Nf3 {[%clk 0:03:07.7]} 6... Nc6 {[%clk 0:03:06.3]}
7. O-O {[%clk 0:03:08.8]} 7... Bg4 {[%clk 0:03:07.5]} 8. d5 {[%clk 0:03:04.5]}
8... Na5 {[%clk 0:03:08.4]} 9. Nd2 {[%clk 0:03:05.8]} 9... c5 {[%clk 0:03:09.2]}
10. Qc2 {[%clk 0:02:58.4]} 10... e5 {[%clk 0:03:08.7]} 11. a3 {[%clk 0:02:35.1]}
11... Rc8 {[%clk 0:03:00.2]} 12. Qd3 {[%clk 0:02:24]} 12... b6 {[%clk
0:02:54.8]} 13. b4 {[%clk 0:02:00.7]} 13... Nb7 {[%clk 0:02:55.1]} 14. Bb2
{[%clk 0:01:59.8]} 14... Nh5 {[%clk 0:02:16.5]} 15. Nb5 {[%clk 0:01:49.1]} 15...
Ra8 {[%clk 0:02:16.2]} 16. e4 {[%clk 0:01:33.1]} 16... a6 {[%clk 0:02:07.6]} 17.
Nc3 {[%clk 0:01:34.1]} 17... Bd7 {[%clk 0:02:08.7]} 18. Rab1 {[%clk 0:01:33]}
18... cxb4 {[%clk 0:01:57.6]} 19. axb4 {[%clk 0:01:34.1]} 19... a5 {[%clk
0:01:59]} 20. bxa5 {[%clk 0:01:33.4]} 20... Nc5 {[%clk 0:01:56.1]} 21. Qc2
{[%clk 0:01:28.1]} 21... bxa5 {[%clk 0:01:55.2]} 22. Nb3 {[%clk 0:01:28.3]}
22... Na4 {[%clk 0:01:43.9]} 23. Ba3 {[%clk 0:01:26.4]} 23... Qc7 {[%clk
0:01:18.3]} 24. c5 {[%clk 0:01:23.6]} 24... Nxc5 {[%clk 0:01:01.6]} 25. Nxc5
{[%clk 0:01:24.1]} 25... dxc5 {[%clk 0:01:02.5]} 26. Nb5 {[%clk 0:01:25.5]}
26... Bxb5 {[%clk 0:01:00.9]} 27. Rxb5 {[%clk 0:01:27.4]} 27... Rfc8 {[%clk
0:01:00.1]} 28. Rxc5 {[%clk 0:01:24.5]} 28... Qd8 {[%clk 0:00:56.8]} 29. Rc6
{[%clk 0:01:22]} 29... Bf8 {[%clk 0:00:52.3]} 30. Bb2 {[%clk 0:01:12.1]} 30...
Bd6 {[%clk 0:00:44.6]} 31. Ra1 {[%clk 0:01:10.6]} 31... Nf6 {[%clk 0:00:39.5]}
32. Ra4 {[%clk 0:01:04.3]} 32... Nd7 {[%clk 0:00:28.3]} 33. Bh3 {[%clk
0:01:04.1]} 33... Rc7 {[%clk 0:00:28.1]} 34. Rac4 {[%clk 0:00:58.7]} 34... Raa7
{[%clk 0:00:23.1]} 35. Rxd6 {[%clk 0:00:58.9]} 1-0

[Event "*** Titled Tuesday Blitz"]
[Site "Chess.com"]
[Date "2019.06.04"]
[Round "5"]
[White "Thee-Chessboy"]
[Black "KazakhFighter04"]
[Result "0-1"]
[WhiteElo "2436"]
[BlackElo "2630"]
[TimeControl "180+2"]
[EndTime "14:05:37 PDT"]
[Termination "KazakhFighter04 won by resignation"]

1. d4 {[%clk 0:03:01.9]} 1... Nf6 {[%clk 0:03:00.8]} 2. c4 {[%clk 0:02:56.4]}
2... e6 {[%clk 0:03:02]} 3. Nf3 {[%clk 0:02:57]} 3... c5 {[%clk 0:03:03.1]} 4.
d5 {[%clk 0:02:56.1]} 4... exd5 {[%clk 0:03:05]} 5. cxd5 {[%clk 0:02:58]} 5...
b5 {[%clk 0:03:06.9]} 6. Bg5 {[%clk 0:02:35.5]} 6... h6 {[%clk 0:02:54.3]} 7.
Bh4 {[%clk 0:02:24.9]} 7... Bb7 {[%clk 0:02:44.8]} 8. e3 {[%clk 0:02:06.1]} 8...
g5 {[%clk 0:02:40.9]} 9. Bg3 {[%clk 0:02:06.3]} 9... Nxd5 {[%clk 0:02:42.1]} 10.
Nbd2 {[%clk 0:01:47.7]} 10... Bg7 {[%clk 0:02:37.6]} 11. Bxb5 {[%clk 0:01:38.5]}
11... Bxb2 {[%clk 0:02:31.5]} 12. O-O {[%clk 0:01:36.9]} 12... O-O {[%clk
0:02:18]} 13. Nc4 {[%clk 0:01:02.8]} 13... Nc3 {[%clk 0:02:12]} 14. Qb3 {[%clk
0:01:03.2]} 14... Bxa1 {[%clk 0:02:08.9]} 15. Rxa1 {[%clk 0:01:03]} 15... Ne2+
{[%clk 0:01:54.3]} 16. Kh1 {[%clk 0:01:02.6]} 16... Nxg3+ {[%clk 0:01:56.2]} 17.
hxg3 {[%clk 0:01:03]} 17... d5 {[%clk 0:01:57.6]} 18. Nce5 {[%clk 0:01:00.9]}
18... Qb6 {[%clk 0:01:57.8]} 19. Rb1 {[%clk 0:00:41.4]} 19... a6 {[%clk
0:01:54.7]} 20. Ba4 {[%clk 0:00:37.8]} 20... Qxb3 {[%clk 0:01:54.2]} 21. Rxb3
{[%clk 0:00:39.7]} 21... Ra7 {[%clk 0:01:52.5]} 22. Rb6 {[%clk 0:00:38.7]} 22...
Kg7 {[%clk 0:01:51.3]} 23. Ng4 {[%clk 0:00:31.7]} 23... f6 {[%clk 0:01:34.1]}
24. Ngh2 {[%clk 0:00:20.8]} 24... Rc8 {[%clk 0:01:16.9]} 25. Nf1 {[%clk
0:00:21.5]} 25... Bc6 {[%clk 0:01:14]} 26. Bc2 {[%clk 0:00:21.5]} 26... Rb7
{[%clk 0:01:12]} 27. Rxb7+ {[%clk 0:00:22.5]} 27... Bxb7 {[%clk 0:01:13.9]} 28.
g4 {[%clk 0:00:24.3]} 28... d4 {[%clk 0:01:10.9]} 29. Ng3 {[%clk 0:00:24.8]}
29... Bxf3 {[%clk 0:01:05.4]} 30. gxf3 {[%clk 0:00:25.4]} 30... Rd8 {[%clk
0:01:01.9]} 31. Nf5+ {[%clk 0:00:25.5]} 31... Kf8 {[%clk 0:01:02.8]} 32. exd4
{[%clk 0:00:23.1]} 32... cxd4 {[%clk 0:01:03.2]} 33. Bd3 {[%clk 0:00:25]} 33...
Nc6 {[%clk 0:01:03.6]} 0-1

[Event "*** Titled Tuesday Blitz"]
[Site "Chess.com"]
[Date "2019.06.04"]
[Round "5"]
[White "MagnutssCarleson"]
[Black "Alopekos"]
[Result "1-0"]
[WhiteElo "2301"]
[BlackElo "2492"]
[TimeControl "180+2"]
[EndTime "14:05:38 PDT"]
[Termination "MagnutssCarleson won by resignation"]

1. Nf3 {[%clk 0:03:01.9]} 1... Nf6 {[%clk 0:03:00.6]} 2. g3 {[%clk 0:03:03.2]}
2... e6 {[%clk 0:03:01.6]} 3. Bg2 {[%clk 0:03:03.8]} 3... d5 {[%clk 0:03:03.2]}
4. O-O {[%clk 0:03:04.7]} 4... Be7 {[%clk 0:03:04.9]} 5. c4 {[%clk 0:03:05.4]}
5... O-O {[%clk 0:03:06.3]} 6. Nc3 {[%clk 0:03:05.1]} 6... d4 {[%clk 0:03:00.4]}
7. Nb1 {[%clk 0:03:03.5]} 7... Nc6 {[%clk 0:02:48.9]} 8. d3 {[%clk 0:03:02.9]}
8... e5 {[%clk 0:02:48.6]} 9. Nbd2 {[%clk 0:03:00.5]} 9... Bf5 {[%clk
0:02:36.1]} 10. Nh4 {[%clk 0:02:58.4]} 10... Be6 {[%clk 0:02:24.9]} 11. a3
{[%clk 0:02:53.8]} 11... a5 {[%clk 0:02:25.3]} 12. Rb1 {[%clk 0:02:52.6]} 12...
Qd7 {[%clk 0:02:09.8]} 13. Nhf3 {[%clk 0:02:41.7]} 13... Ng4 {[%clk 0:01:52.7]}
14. Qa4 {[%clk 0:02:37.5]} 14... f5 {[%clk 0:01:37]} 15. Qb5 {[%clk 0:02:34.2]}
15... Ra6 {[%clk 0:01:37.3]} 16. c5 {[%clk 0:02:28.6]} 16... a4 {[%clk 0:01:32]}
17. Nc4 {[%clk 0:02:17.6]} 17... Qc8 {[%clk 0:01:03.9]} 18. h3 {[%clk
0:02:03.8]} 18... Nf6 {[%clk 0:00:31.1]} 19. Nfxe5 {[%clk 0:02:03.6]} 19... Bd5
{[%clk 0:00:20.7]} 20. b4 {[%clk 0:01:28.7]} 20... Bxg2 {[%clk 0:00:17.5]} 21.
Kxg2 {[%clk 0:01:27.9]} 21... Na7 {[%clk 0:00:12.6]} 22. Nb6 {[%clk 0:01:20.1]}
22... cxb6 {[%clk 0:00:09.1]} 23. Qc4+ {[%clk 0:01:19.9]} 23... Kh8 {[%clk
0:00:09]} 24. Nf7+ {[%clk 0:01:19.4]} 24... Rxf7 {[%clk 0:00:10]} 25. Qxf7
{[%clk 0:01:21.3]} 25... Nc6 {[%clk 0:00:06.3]} 26. b5 {[%clk 0:01:20]} 26...
Ne5 {[%clk 0:00:06.7]} 27. Qxe7 {[%clk 0:01:19.6]} 27... Ng6 {[%clk 0:00:06.3]}
28. Qf7 {[%clk 0:01:13.4]} 28... Ra8 {[%clk 0:00:05.3]} 29. cxb6 {[%clk
0:01:13]} 29... Qc2 {[%clk 0:00:05.6]} 30. Bg5 {[%clk 0:01:13.3]} 30... Nh5
{[%clk 0:00:02.2]} 31. Qxb7 {[%clk 0:01:13.6]} 31... Rf8 {[%clk 0:00:02.9]} 32.
Qf3 {[%clk 0:01:14.2]} 32... f4 {[%clk 0:00:02.2]} 33. g4 {[%clk 0:01:14.4]}
33... Nf6 {[%clk 0:00:03]} 34. Bxf6 {[%clk 0:01:15]} 34... Rxf6 {[%clk
0:00:04.2]} 35. b7 {[%clk 0:01:16.9]} 35... Rf8 {[%clk 0:00:05]} 36. Rfc1 {[%clk
0:01:16.5]} 1-0

[Event "*** Titled Tuesday Blitz"]
[Site "Chess.com"]
[Date "2019.06.04"]
[Round "5"]
[White "Obito24"]
[Black "Alexander_Moskalenko"]
[Result "0-1"]
[WhiteElo "2743"]
[BlackElo "2899"]
[TimeControl "180+2"]
[EndTime "14:05:48 PDT"]
[Termination "Alexander_Moskalenko won by resignation"]

1. d4 {[%clk 0:02:48.6]} 1... g6 {[%clk 0:03:01.8]} 2. c4 {[%clk 0:02:48.6]}
2... Bg7 {[%clk 0:03:03]} 3. Nc3 {[%clk 0:02:50]} 3... c5 {[%clk 0:03:02.4]} 4.
Nf3 {[%clk 0:02:50.6]} 4... cxd4 {[%clk 0:03:03]} 5. Nxd4 {[%clk 0:02:51.6]}
5... Nc6 {[%clk 0:03:04.9]} 6. e3 {[%clk 0:02:49.7]} 6... Nf6 {[%clk 0:03:02.5]}
7. Be2 {[%clk 0:02:46.2]} 7... O-O {[%clk 0:03:01]} 8. O-O {[%clk 0:02:38.4]}
8... d5 {[%clk 0:03:02.1]} 9. cxd5 {[%clk 0:02:27]} 9... Nxd5 {[%clk 0:03:01.6]}
10. Nxd5 {[%clk 0:02:28]} 10... Qxd5 {[%clk 0:02:56]} 11. Bf3 {[%clk 0:02:28.8]}
11... Qc5 {[%clk 0:02:31.1]} 12. Nxc6 {[%clk 0:01:44.1]} 12... bxc6 {[%clk
0:02:33]} 13. Qa4 {[%clk 0:01:25]} 13... Bf5 {[%clk 0:02:33.3]} 14. Qxc6 {[%clk
0:01:07.9]} 14... Qxc6 {[%clk 0:02:32.1]} 15. Bxc6 {[%clk 0:01:09.4]} 15... Rac8
{[%clk 0:02:34]} 16. Ba4 {[%clk 0:01:06.5]} 16... Rfd8 {[%clk 0:02:25.4]} 17.
Re1 {[%clk 0:00:57.9]} 17... Bc2 {[%clk 0:02:08.1]} 18. Bxc2 {[%clk 0:00:55.3]}
18... Rxc2 {[%clk 0:02:10]} 19. Rb1 {[%clk 0:00:56.7]} 19... e6 {[%clk
0:02:02.5]} 20. g4 {[%clk 0:00:46.6]} 20... Rd5 {[%clk 0:02:00.9]} 21. h3 {[%clk
0:00:38.2]} 21... h5 {[%clk 0:01:54.5]} 22. Kg2 {[%clk 0:00:38.7]} 22... hxg4
{[%clk 0:01:51.7]} 23. hxg4 {[%clk 0:00:39.6]} 23... a6 {[%clk 0:01:53.6]} 24.
a4 {[%clk 0:00:36.7]} 24... a5 {[%clk 0:01:41.4]} 25. b3 {[%clk 0:00:21]} 25...
Bc3 {[%clk 0:01:41.4]} 26. Rh1 {[%clk 0:00:17.6]} 26... Rd3 {[%clk 0:01:42.4]}
27. e4 {[%clk 0:00:15.9]} 27... Bd4 {[%clk 0:01:39.4]} 28. Rf1 {[%clk
0:00:14.1]} 28... Re2 {[%clk 0:01:40.2]} 29. b4 {[%clk 0:00:11.2]} 29... Rxe4
{[%clk 0:01:28.5]} 30. bxa5 {[%clk 0:00:08.7]} 30... Rxg4+ {[%clk 0:01:29.9]}
31. Kh2 {[%clk 0:00:10.2]} 31... Rf3 {[%clk 0:01:11.9]} 32. Rb8+ {[%clk
0:00:09.8]} 32... Kg7 {[%clk 0:01:12.6]} 33. a6 {[%clk 0:00:06.3]} 33... Be5+
{[%clk 0:01:13.4]} 0-1

[Event "*** Titled Tuesday Blitz"]
[Site "Chess.com"]
[Date "2019.06.04"]
[Round "5"]
[White "Zhuu96"]
[Black "pultineviciuspaulius"]
[Result "1-0"]
[WhiteElo "2949"]
[BlackElo "2721"]
[TimeControl "180+2"]
[EndTime "14:05:50 PDT"]
[Termination "Zhuu96 won by resignation"]

1. e4 {[%clk 0:03:00.1]} 1... c6 {[%clk 0:02:57]} 2. d4 {[%clk 0:03:00.8]} 2...
d5 {[%clk 0:02:58.1]} 3. Nc3 {[%clk 0:03:02.1]} 3... dxe4 {[%clk 0:02:59]} 4.
Nxe4 {[%clk 0:03:03.3]} 4... Bf5 {[%clk 0:03:00.5]} 5. Nc5 {[%clk 0:03:02.8]}
5... Nd7 {[%clk 0:03:01.4]} 6. Nxb7 {[%clk 0:03:02]} 6... Qb6 {[%clk 0:03:02.2]}
7. Nc5 {[%clk 0:03:02.7]} 7... Nxc5 {[%clk 0:03:03.6]} 8. dxc5 {[%clk
0:03:03.7]} 8... Qxc5 {[%clk 0:03:05.2]} 9. c3 {[%clk 0:02:56.5]} 9... Nf6
{[%clk 0:03:03.4]} 10. Nf3 {[%clk 0:02:54.9]} 10... e6 {[%clk 0:03:02.1]} 11.
Be3 {[%clk 0:02:53.5]} 11... Qa5 {[%clk 0:02:54.3]} 12. Be2 {[%clk 0:02:49]}
12... Rb8 {[%clk 0:02:42.3]} 13. Qc1 {[%clk 0:02:32.8]} 13... c5 {[%clk
0:02:41.9]} 14. O-O {[%clk 0:02:31.6]} 14... Be7 {[%clk 0:02:39.8]} 15. b4
{[%clk 0:02:32.1]} 15... Qc7 {[%clk 0:02:32]} 16. Rd1 {[%clk 0:02:27.1]} 16...
Nd5 {[%clk 0:02:30.9]} 17. Bxc5 {[%clk 0:02:19.5]} 17... Bxc5 {[%clk 0:02:28]}
18. bxc5 {[%clk 0:02:21]} 18... Qxc5 {[%clk 0:02:29.4]} 19. c4 {[%clk
0:02:18.6]} 19... Nf6 {[%clk 0:02:25.1]} 20. Nd4 {[%clk 0:02:18.8]} 20... Bg6
{[%clk 0:01:50.9]} 21. Nb3 {[%clk 0:02:15.1]} 21... Qe7 {[%clk 0:01:51.3]} 22.
Na5 {[%clk 0:02:10.7]} 22... Rc8 {[%clk 0:01:42.9]} 23. Bf3 {[%clk 0:02:07.8]}
23... O-O {[%clk 0:01:41.4]} 24. Qe3 {[%clk 0:02:08.3]} 24... Qc5 {[%clk
0:01:34.4]} 25. Qe1 {[%clk 0:02:05.1]} 25... Qa3 {[%clk 0:01:14.9]} 26. Nc6
{[%clk 0:02:03.2]} 26... Qc5 {[%clk 0:01:10.7]} 27. Ne5 {[%clk 0:02:04.1]} 27...
Rfd8 {[%clk 0:01:03.3]} 28. Rxd8+ {[%clk 0:02:04.1]} 28... Rxd8 {[%clk
0:01:05.2]} 29. Rc1 {[%clk 0:02:05.1]} 29... Rd4 {[%clk 0:00:40.6]} 30. Qe3
{[%clk 0:01:36.9]} 30... Ne4 {[%clk 0:00:35.7]} 31. Nxg6 {[%clk 0:01:35.5]}
31... Ng5 {[%clk 0:00:08.4]} 32. Ne5 {[%clk 0:01:31.6]} 32... f6 {[%clk
0:00:04.5]} 33. Nd3 {[%clk 0:01:30.3]} 33... Qd6 {[%clk 0:00:05.7]} 34. c5
{[%clk 0:01:30]} 34... Qd8 {[%clk 0:00:07.1]} 35. c6 {[%clk 0:01:19.3]} 35...
Rxd3 {[%clk 0:00:05.8]} 36. c7 {[%clk 0:01:20.5]} 36... Qxc7 {[%clk 0:00:04.2]}
37. Rxc7 {[%clk 0:01:20.2]} 37... Nxf3+ {[%clk 0:00:03.8]} 38. Qxf3 {[%clk
0:01:20.5]} 38... Rxf3 {[%clk 0:00:02.6]} 39. gxf3 {[%clk 0:01:21.7]} 1-0

[Event "*** Titled Tuesday Blitz"]
[Site "Chess.com"]
[Date "2019.06.04"]
[Round "5"]
[White "gemarin"]
[Black "OglazaOskar2005"]
[Result "0-1"]
[WhiteElo "2055"]
[BlackElo "2212"]
[TimeControl "180+2"]
[EndTime "14:05:50 PDT"]
[Termination "OglazaOskar2005 won by resignation"]

1. d4 {[%clk 0:03:01.9]} 1... Nf6 {[%clk 0:02:59.3]} 2. c4 {[%clk 0:03:01.8]}
2... g6 {[%clk 0:02:59.6]} 3. Nc3 {[%clk 0:03:01.5]} 3... d5 {[%clk 0:03:01.2]}
4. Nf3 {[%clk 0:03:01]} 4... Bg7 {[%clk 0:03:01.8]} 5. Qb3 {[%clk 0:03:01.4]}
5... dxc4 {[%clk 0:03:02.3]} 6. Qxc4 {[%clk 0:03:02.6]} 6... O-O {[%clk
0:03:03.1]} 7. e4 {[%clk 0:03:03.2]} 7... Nc6 {[%clk 0:03:04.4]} 8. d5 {[%clk
0:02:57.2]} 8... Na5 {[%clk 0:03:03.8]} 9. Qa4 {[%clk 0:02:54.8]} 9... c6 {[%clk
0:03:02.5]} 10. Bd2 {[%clk 0:02:43]} 10... Bd7 {[%clk 0:02:50.2]} 11. b4 {[%clk
0:02:40.2]} 11... Nxe4 {[%clk 0:02:39]} 12. Nxe4 {[%clk 0:02:32.4]} 12... Bxa1
{[%clk 0:02:38.2]} 13. Qxa5 {[%clk 0:02:29.8]} 13... Qxa5 {[%clk 0:02:22.2]} 14.
bxa5 {[%clk 0:02:29.9]} 14... cxd5 {[%clk 0:02:22.5]} 15. Nc3 {[%clk 0:02:28.6]}
15... e6 {[%clk 0:02:18.5]} 16. Bd3 {[%clk 0:02:13.9]} 16... Rfc8 {[%clk
0:02:19.3]} 17. Ne2 {[%clk 0:02:13.6]} 17... e5 {[%clk 0:02:15.8]} 18. Bb1
{[%clk 0:02:10.2]} 18... f6 {[%clk 0:02:13.8]} 19. O-O {[%clk 0:02:10.5]} 19...
Bb2 {[%clk 0:02:11.7]} 20. h3 {[%clk 0:01:52.1]} 20... d4 {[%clk 0:02:07.3]} 21.
Ng3 {[%clk 0:01:49.8]} 21... Kg7 {[%clk 0:02:02.2]} 22. Ne4 {[%clk 0:01:48.1]}
22... Be6 {[%clk 0:02:01.4]} 23. g4 {[%clk 0:01:41.8]} 23... h6 {[%clk
0:01:54.1]} 24. Re1 {[%clk 0:01:40.3]} 24... Rc6 {[%clk 0:01:53.4]} 25. Ng3
{[%clk 0:01:31.5]} 25... Rac8 {[%clk 0:01:51.8]} 26. Be4 {[%clk 0:01:31.4]}
26... Rc4 {[%clk 0:01:46.2]} 27. Bxb7 {[%clk 0:01:30.7]} 27... R8c7 {[%clk
0:01:45.8]} 28. a6 {[%clk 0:01:31.1]} 28... Bc3 {[%clk 0:01:45.8]} 29. Ne4
{[%clk 0:01:29.8]} 29... Bxd2 {[%clk 0:01:45.7]} 30. Nfxd2 {[%clk 0:01:30.1]}
30... Rc2 {[%clk 0:01:46.9]} 31. Nb3 {[%clk 0:01:27.5]} 31... Rxa2 {[%clk
0:01:40.5]} 32. Nc1 {[%clk 0:01:17.2]} 32... Ra1 {[%clk 0:01:39.4]} 33. Nd3
{[%clk 0:01:10.5]} 33... Rxe1+ {[%clk 0:01:39.5]} 34. Nxe1 {[%clk 0:01:10.6]}
34... Rc1 {[%clk 0:01:41.1]} 35. Kf1 {[%clk 0:01:10.1]} 35... Bc4+ {[%clk
0:01:41.2]} 36. Kg2 {[%clk 0:01:11.6]} 36... Rxe1 {[%clk 0:01:42.7]} 37. Nd6
{[%clk 0:01:12.1]} 37... Bf1+ {[%clk 0:01:41.5]} 38. Kf3 {[%clk 0:01:12.3]}
38... d3 {[%clk 0:01:42.8]} 39. Nc4 {[%clk 0:01:02.2]} 39... e4+ {[%clk
0:01:38.7]} 40. Kf4 {[%clk 0:01:01.8]} 40... Bg2 {[%clk 0:01:33.6]} 41. h4
{[%clk 0:00:54.2]} 41... e3 {[%clk 0:01:32.6]} 42. Nxe3 {[%clk 0:00:51.2]} 42...
Bxb7 {[%clk 0:01:28]} 43. axb7 {[%clk 0:00:50.7]} 43... Rb1 {[%clk 0:01:29.5]}
44. Ke4 {[%clk 0:00:49.3]} 44... d2 {[%clk 0:01:28.5]} 45. Kd3 {[%clk
0:00:50.4]} 45... d1=Q+ {[%clk 0:01:28]} 46. Nxd1 {[%clk 0:00:51.1]} 46... Rxd1+
{[%clk 0:01:29]} 47. Kc2 {[%clk 0:00:52.7]} 47... Rd8 {[%clk 0:01:30.7]} 0-1

[Event "*** Titled Tuesday Blitz"]
[Site "Chess.com"]
[Date "2019.06.04"]
[Round "5"]
[White "SoltaniciR"]
[Black "awesomevishesh"]
[Result "0-1"]
[WhiteElo "2584"]
[BlackElo "2446"]
[TimeControl "180+2"]
[EndTime "14:05:54 PDT"]
[Termination "awesomevishesh won by resignation"]

1. e4 {[%clk 0:03:01.9]} 1... c5 {[%clk 0:03:00.2]} 2. Nf3 {[%clk 0:03:02.4]}
2... Nc6 {[%clk 0:03:01.3]} 3. Nc3 {[%clk 0:03:02.7]} 3... e5 {[%clk 0:03:01.5]}
4. Bc4 {[%clk 0:03:02.9]} 4... d6 {[%clk 0:03:02.5]} 5. d3 {[%clk 0:03:02.9]}
5... Be7 {[%clk 0:03:03.6]} 6. Nd2 {[%clk 0:03:03.9]} 6... Nf6 {[%clk
0:03:04.8]} 7. Nf1 {[%clk 0:03:05]} 7... O-O {[%clk 0:03:04.9]} 8. Ne3 {[%clk
0:03:06]} 8... Nd7 {[%clk 0:03:06]} 9. a3 {[%clk 0:03:06.6]} 9... Nb6 {[%clk
0:03:06.4]} 10. Ba2 {[%clk 0:03:07.5]} 10... Bg5 {[%clk 0:03:03.5]} 11. O-O
{[%clk 0:03:08.3]} 11... Kh8 {[%clk 0:03:04.5]} 12. Ncd5 {[%clk 0:02:56.5]}
12... Nxd5 {[%clk 0:02:55.4]} 13. Nxd5 {[%clk 0:02:56.7]} 13... Bxc1 {[%clk
0:02:55]} 14. Rxc1 {[%clk 0:02:58.6]} 14... f5 {[%clk 0:02:50.5]} 15. exf5
{[%clk 0:02:55.3]} 15... Bxf5 {[%clk 0:02:51.5]} 16. Ne3 {[%clk 0:02:55.6]}
16... Bg6 {[%clk 0:02:42]} 17. Bd5 {[%clk 0:02:52.6]} 17... Rc8 {[%clk
0:02:39.8]} 18. g3 {[%clk 0:02:52.6]} 18... Qd7 {[%clk 0:02:38.1]} 19. Bg2
{[%clk 0:02:52.4]} 19... Bf7 {[%clk 0:02:22.3]} 20. f4 {[%clk 0:02:43.5]} 20...
Rce8 {[%clk 0:02:13.4]} 21. Qd2 {[%clk 0:02:43.3]} 21... d5 {[%clk 0:02:06.5]}
22. fxe5 {[%clk 0:02:41.6]} 22... Nxe5 {[%clk 0:02:07]} 23. Rce1 {[%clk
0:02:27.1]} 23... d4 {[%clk 0:02:01]} 24. Nf5 {[%clk 0:02:25.8]} 24... Bd5
{[%clk 0:01:53.5]} 25. Nh4 {[%clk 0:01:41.7]} 25... Bxg2 {[%clk 0:01:52.5]} 26.
Qxg2 {[%clk 0:01:41.3]} 26... Ng4 {[%clk 0:01:44]} 27. Rxe8 {[%clk 0:01:37.5]}
27... Rxe8 {[%clk 0:01:42]} 28. Qf3 {[%clk 0:01:21.8]} 28... Kg8 {[%clk
0:01:11.8]} 29. Nf5 {[%clk 0:01:01.2]} 29... Ne3 {[%clk 0:00:59.9]} 30. Nxe3
{[%clk 0:00:57.1]} 30... dxe3 {[%clk 0:01:01.1]} 31. Re1 {[%clk 0:00:45.8]}
31... g6 {[%clk 0:01:01.4]} 32. Re2 {[%clk 0:00:40.9]} 32... b6 {[%clk
0:00:49.2]} 33. Rxe3 {[%clk 0:00:21.7]} 33... Qd4 {[%clk 0:00:47.4]} 34. Kf2
{[%clk 0:00:22]} 34... Rf8 {[%clk 0:00:47.8]} 0-1

[Event "*** Titled Tuesday Blitz"]
[Site "Chess.com"]
[Date "2019.06.04"]
[Round "5"]
[White "alturas_pacificas"]
[Black "GremioPrudente"]
[Result "1/2-1/2"]
[WhiteElo "2267"]
[BlackElo "2129"]
[TimeControl "180+2"]
[EndTime "14:05:56 PDT"]
[Termination "Game drawn by agreement"]

1. d4 {[%clk 0:03:01.9]} 1... d5 {[%clk 0:03:00.8]} 2. Bf4 {[%clk 0:03:02.3]}
2... e6 {[%clk 0:02:59.1]} 3. e3 {[%clk 0:03:03.6]} 3... Bd6 {[%clk 0:03:00.5]}
4. Bg3 {[%clk 0:03:04.2]} 4... Nf6 {[%clk 0:02:58.7]} 5. Nf3 {[%clk 0:03:05.6]}
5... O-O {[%clk 0:02:58.3]} 6. Nbd2 {[%clk 0:03:06.8]} 6... c5 {[%clk
0:02:58.1]} 7. c3 {[%clk 0:03:07.9]} 7... Qc7 {[%clk 0:02:58.5]} 8. Ne5 {[%clk
0:03:08]} 8... Nbd7 {[%clk 0:02:58.6]} 9. f4 {[%clk 0:03:09.3]} 9... Ne4 {[%clk
0:02:54.5]} 10. Nxe4 {[%clk 0:03:08.7]} 10... dxe4 {[%clk 0:02:55.6]} 11. Be2
{[%clk 0:02:56.2]} 11... Nxe5 {[%clk 0:02:51.6]} 12. fxe5 {[%clk 0:02:56.5]}
12... Be7 {[%clk 0:02:49.8]} 13. O-O {[%clk 0:02:57.3]} 13... b6 {[%clk
0:02:46]} 14. d5 {[%clk 0:02:16.8]} 14... exd5 {[%clk 0:02:41.1]} 15. e6 {[%clk
0:02:18.1]} 15... Qc6 {[%clk 0:02:29.7]} 16. exf7+ {[%clk 0:02:17.5]} 16... Rxf7
{[%clk 0:02:30.7]} 17. Rxf7 {[%clk 0:02:02.3]} 17... Kxf7 {[%clk 0:02:31.1]} 18.
Bb5 {[%clk 0:01:23.5]} 18... Qe6 {[%clk 0:02:18.9]} 19. Qh5+ {[%clk 0:01:20.6]}
19... Kg8 {[%clk 0:02:06.6]} 20. c4 {[%clk 0:00:34.1]} 20... Bb7 {[%clk
0:02:01.9]} 21. cxd5 {[%clk 0:00:28.7]} 21... Bxd5 {[%clk 0:02:00.5]} 22. Rd1
{[%clk 0:00:21.6]} 22... Rf8 {[%clk 0:01:48.6]} 23. b3 {[%clk 0:00:20.3]} 23...
Rf5 {[%clk 0:01:26.6]} 24. Qe2 {[%clk 0:00:21.1]} 24... Qf7 {[%clk 0:01:10.3]}
25. h3 {[%clk 0:00:21.4]} 25... Be6 {[%clk 0:01:05.3]} 26. Kh2 {[%clk
0:00:21.3]} 26... h6 {[%clk 0:00:58.2]} 27. Bc4 {[%clk 0:00:22.1]} 27... Bxc4
{[%clk 0:00:58.3]} 28. bxc4 {[%clk 0:00:24]} 28... Kh7 {[%clk 0:00:48.8]} 29.
Rd7 {[%clk 0:00:24.8]} 29... Qf6 {[%clk 0:00:35.8]} 30. Rxa7 {[%clk 0:00:22.7]}
30... Bd6 {[%clk 0:00:36.9]} 1/2-1/2

[Event "*** Titled Tuesday Blitz"]
[Site "Chess.com"]
[Date "2019.06.04"]
[Round "5"]
[White "catalin009"]
[Black "GMHess"]
[Result "0-1"]
[WhiteElo "2490"]
[BlackElo "2660"]
[TimeControl "180+2"]
[EndTime "14:05:57 PDT"]
[Termination "GMHess won by resignation"]

1. Nf3 {[%clk 0:03:01.9]} 1... g6 {[%clk 0:03:01.2]} 2. g3 {[%clk 0:03:03.5]}
2... Bg7 {[%clk 0:03:03.1]} 3. Bg2 {[%clk 0:03:05.1]} 3... c6 {[%clk 0:03:04.1]}
4. O-O {[%clk 0:03:06.2]} 4... d5 {[%clk 0:03:05.5]} 5. d4 {[%clk 0:03:07.3]}
5... Nf6 {[%clk 0:03:07.4]} 6. c4 {[%clk 0:03:08.1]} 6... dxc4 {[%clk
0:02:52.9]} 7. Na3 {[%clk 0:02:44.3]} 7... b5 {[%clk 0:02:44.6]} 8. Ne5 {[%clk
0:02:43.7]} 8... Nd5 {[%clk 0:02:44.7]} 9. b3 {[%clk 0:02:15.1]} 9... c3 {[%clk
0:02:28.4]} 10. e4 {[%clk 0:01:49.8]} 10... Nb6 {[%clk 0:02:17.7]} 11. Qf3
{[%clk 0:01:40.3]} 11... Bxe5 {[%clk 0:02:08.7]} 12. dxe5 {[%clk 0:01:41.3]}
12... b4 {[%clk 0:02:10.1]} 13. Nc2 {[%clk 0:01:25.8]} 13... a5 {[%clk
0:01:51.5]} 14. Bh6 {[%clk 0:01:24.9]} 14... Qc7 {[%clk 0:01:38.6]} 15. Qe3
{[%clk 0:00:37.6]} 15... Ba6 {[%clk 0:01:12.8]} 16. Rfd1 {[%clk 0:00:37.9]}
16... N8d7 {[%clk 0:01:13]} 17. f4 {[%clk 0:00:37.5]} 17... c5 {[%clk
0:01:07.5]} 18. a3 {[%clk 0:00:24.1]} 18... a4 {[%clk 0:00:55.7]} 19. axb4
{[%clk 0:00:18.8]} 19... axb3 {[%clk 0:00:55.3]} 20. e6 {[%clk 0:00:15.9]} 20...
bxc2 {[%clk 0:00:39.1]} 21. exd7+ {[%clk 0:00:16.6]} 21... Nxd7 {[%clk 0:00:41]}
22. Rdc1 {[%clk 0:00:10.7]} 22... cxb4 {[%clk 0:00:38.2]} 23. Qd4 {[%clk
0:00:12.1]} 23... Qc5 {[%clk 0:00:37.3]} 24. Qxc5 {[%clk 0:00:06.4]} 24... Nxc5
{[%clk 0:00:39.2]} 25. Rxc2 {[%clk 0:00:05.8]} 25... Nb3 {[%clk 0:00:38.8]} 26.
Ra4 {[%clk 0:00:04.1]} 26... Nd4 {[%clk 0:00:38.2]} 27. Rf2 {[%clk 0:00:02.5]}
27... c2 {[%clk 0:00:31.5]} 28. f5 {[%clk 0:00:04]} 28... b3 {[%clk 0:00:32.5]}
29. Rxd4 {[%clk 0:00:04]} 29... b2 {[%clk 0:00:33.4]} 30. Rb4 {[%clk 0:00:03.5]}
30... c1=Q+ {[%clk 0:00:33.5]} 0-1